fUSD/lending_fUSD_20260116
["ID","MTS","AMOUNT","RATE_DAILY","PERIOD"]
[402212257,1768606246984,-1258.2488094,0.000179,2]
[402212259,1768606246995,-880.77416658,0.000179,4]
[402212261,1768606247003,-2297.57614566,0.000179,2]
[402212263,1768606247013,-20409.91589313,0.000179,2]
[402212265,1768606247022,-13553.0,0.000179,2]
[402212267,1768606247030,-2000.0,0.00017913,2]
[402212269,1768606247039,-2000.0,0.00017913,2]
[402212271,1768606247049,-2000.0,0.00017913,2]
[402212273,1768606247058,-1000.0,0.00017913,2]
[402212275,1768606247067,-1000.0,0.00017913,2]
[402212277,1768606247076,-1000.0,0.00017913,2]
[402212278,1768606247086,-757.196,0.00017913,2]
[402212280,1768606247096,-1555.0,0.00017914,2]
[402212282,1768606247106,-5162.3,0.00017916,2]
[402212284,1768606247115,-1000.0,0.00017917,2]
[402212287,1768606247124,-500.0,0.00017918,2]
[402212288,1768606247134,-1000.0,0.00017919,2]
[402212290,1768606247143,-1000.0,0.00017928,2]
[402212292,1768606247152,-823.0,0.00017939,2]
[402212295,1768606247161,-1555.0,0.00017943,2]
[402212297,1768606247170,-1000.0,0.00017945,2]
[402212298,1768606247179,-1000.0,0.00017948,2]
[402212301,1768606247188,-1000.0,0.0001795,2]
[402212303,1768606247198,-150.0,0.00017951,2]
[402212305,1768606247207,-166.66,0.00017951,2]
[402212307,1768606247216,-5162.3,0.00017958,2]
[402212308,1768606247225,-150.0,0.00017962,2]
[402212311,1768606247234,-1000.0,0.00017965,2]
[402212312,1768606247243,-1000.0,0.00017966,2]
[402212315,1768606247253,-89660.0633851,0.0001797,2]
[402212317,1768606247262,-500.0,0.0001797,2]
[402212319,1768606247271,-700.0,0.0001797,2]
[402212321,1768606247281,-500.0,0.0001797,2]
[402212322,1768606247290,-700.0,0.0001797,2]
[402212324,1768606247300,-500.0,0.0001797,2]
[402212326,1768606247309,-700.0,0.0001797,2]
[402212328,1768606247318,-500.0,0.0001797,2]
[402212330,1768606247328,-1100.0,0.0001797,2]
[402212332,1768606247337,-500.0,0.0001797,2]
[402212335,1768606247346,-500.0,0.0001797,2]
[402212336,1768606247355,-1000.0,0.00017971,2]
[402212338,1768606247364,-200.0,0.00017971,2]
[402212340,1768606247373,-1000.0,0.00017972,2]
[402212342,1768606247383,-161.53790585,0.00017972,2]
[402212344,1768606247392,-14603.0,0.00017973,2]
[402212346,1768606247400,-500.0,0.00017973,2]
[402212348,1768606247410,-500.0,0.00017973,2]
[402212350,1768606247419,-500.0,0.00017973,2]
[402212352,1768606247428,-500.0,0.00017973,2]
[402212354,1768606247437,-549.42963918,0.00017973,2]
[402212356,1768606247447,-500.0,0.00017973,2]
[402212358,1768606247456,-501.39853349,0.00017973,2]
[402212360,1768606247467,-500.0,0.00017973,2]
[402212362,1768606247477,-217.157295,0.00017973,2]
[402212364,1768606247487,-412.99045558,0.00017973,2]
[402212366,1768606247497,-500.0,0.00017973,2]
[402212368,1768606247506,-500.0,0.00017973,2]
[402212370,1768606247516,-151.37508259,0.00017973,2]
[402212372,1768606247525,-500.0,0.00017973,2]
[402212374,1768606247535,-372.89690242,0.00017973,2]
[402212376,1768606247545,-500.0,0.00017973,2]
[402212378,1768606247554,-500.0,0.00017973,2]
[402212380,1768606247564,-500.0,0.00017973,2]
[402212382,1768606247573,-500.0,0.00017973,2]
[402212384,1768606247588,-500.0,0.00017973,2]
[402212386,1768606247597,-500.0,0.00017973,2]
[402212388,1768606247607,-150.0,0.00017973,2]
[402212390,1768606247617,-170.75,0.00017975,2]
[402212392,1768606247626,-1000.0,0.00017976,2]
[402212394,1768606247635,-1000.0,0.00017976,2]
[402212396,1768606247645,-1000.0,0.00017978,2]
[402212398,1768606247654,-150.0,0.00017981,2]
[402212400,1768606247663,-187.78006525,0.00017989,2]
[402212402,1768606247672,-617.40005154,0.00017989,2]
[402212404,1768606247681,-151.0,0.00017989,2]
[402212406,1768606247690,-150.0,0.0001799,2]
[402212408,1768606247699,-566.80876335,0.0001799,2]
[402212410,1768606247707,-566.80876335,0.0001799,2]
[402212412,1768606247717,-799.21312441,0.00017997,2]
[402212414,1768606247726,-153.03295252,0.00017997,2]
[402212416,1768606247735,-187.326885,0.00017997,2]
[402212418,1768606247745,-150.0,0.00017999,2]
[402212420,1768606247755,-277.95886969,0.00017999,2]
[402212422,1768606247763,-1007.5651,0.00017999,2]
[402212424,1768606247772,-300.0,0.00017999,2]
[402212426,1768606247781,-666.0,0.00017999,2]
[402212428,1768606247790,-300.0,0.00017999,2]
[402212430,1768606247799,-300.0,0.00017999,2]
[402212432,1768606247811,-300.0,0.00017999,2]
[402212434,1768606247820,-666.0,0.00017999,2]
[402212436,1768606247829,-300.0,0.00017999,2]
[402212438,1768606247838,-300.0,0.00017999,2]
[402212440,1768606247847,-666.0,0.00017999,2]
[402212442,1768606247856,-13662.58833108,0.00017999,2]
[402212444,1768606247865,-300.0,0.00017999,2]
[402212446,1768606247874,-300.0,0.00017999,2]
[402212448,1768606247883,-300.0,0.00017999,2]
[402212450,1768606247896,-5433831.26632338,0.00018,2]
[402212544,1768606248760,-768.01997707,0.00018,2]
[402212645,1768606249699,-17158.75736808,0.00018,2]
[402212664,1768606250043,-868.70990999,0.00018,2]
[402212754,1768606250889,-1538.24997371,0.00018,2]
[402216953,1768606350334,282.87892,0.00013559,2]
[402216954,1768606365210,9717.13108,0.00013529,2]
[402216955,1768606365237,10000.01,0.00013529,2]
[402216956,1768606365263,10000.01,0.00013529,2]
[402216957,1768606365288,3495.84612,0.00013529,2]
[402216958,1768606385950,6504.16388,0.00013528,2]
[402216959,1768606385984,10000.01,0.00013528,2]
[402216960,1768606386018,10000.01,0.00013528,2]
[402216961,1768606386049,10000.01,0.00013528,2]
[402216962,1768606386080,10000.01,0.00013528,2]
[402216963,1768606386111,10000.01,0.00013528,2]
[402216964,1768606386144,10000.01,0.00013528,2]
[402216965,1768606386176,10000.01,0.00013528,2]
[402216966,1768606386209,10000.01,0.00013528,2]
[402216967,1768606386241,10000.01,0.00013528,2]
[402216968,1768606401423,-10000.01,0.00013528,2]
[402216969,1768606401549,-10000.01,0.00013528,2]
[402216970,1768606401647,-10000.01,0.00013528,2]
[402216971,1768606404474,-10000.01,0.00013528,2]
[402216972,1768606404593,-10000.01,0.00013528,2]
[402216973,1768606404699,-10000.01,0.00013528,2]
[402216974,1768606404874,-10000.01,0.00013528,2]
[402216975,1768606405042,-10000.01,0.00013528,2]
[402216976,1768606405251,-10000.01,0.00013528,2]
[402216977,1768606407572,-10000.01,0.00013528,2]
[402216978,1768606407721,-10000.01,0.00013528,2]
[402216979,1768606407841,-10000.01,0.00013528,2]
[402216980,1768606419879,-10000.01,0.00013528,2]
[402216981,1768606426428,-10000.01,0.00013528,2]
[402216982,1768606429656,-10000.01,0.00013528,2]
[402216983,1768606429882,-10000.01,0.00013528,2]
[402216984,1768606430008,-10000.01,0.00013528,2]
[402216985,1768606430143,-10000.01,0.00013528,2]
[402216986,1768606438596,-10000.01,0.00013528,2]
[402216987,1768606438715,-10000.01,0.00013528,2]
[402216988,1768606438849,-10000.01,0.00013528,2]
[402216989,1768606439087,-10000.01,0.00013528,2]
[402216990,1768606559524,-446.58901914,0.00013428,2]
[402216991,1768606562775,-189.82412804,0.00013428,2]
[402216992,1768606565372,-292.67,0.00013428,2]
[402216993,1768606568078,-300.0,0.00013427,2]
[402216994,1768606568119,-94.20891727,0.00013428,2]
[402216995,1768606569106,152.622731,0.0001336,2]
[402216996,1768606577757,-292.67,0.00013428,2]
[402216997,1768606579310,-199.02633316,0.00013428,2]
[402216998,1768606582623,-206.7650359,0.00013428,2]
[402216999,1768606649537,-179.58140968,0.00013428,2]
[402217001,1768606710066,-236.43861474,0.00013428,2]
[402217002,1768606711534,-665.23614164,0.00013428,2]
[402217003,1768606715279,-322.71582234,0.00013428,2]
[402217004,1768606717545,-165.56161068,0.00013428,2]
[402217005,1768606720648,-188.22892037,0.00013428,2]
[402217006,1768606722752,-231.48647863,0.00013428,2]
[402217007,1768606725946,-87.53166841,0.00013428,2]
[402217008,1768606725971,-133.58285357,0.00013428,2]
[402217009,1768606727910,-200.32500541,0.00013428,2]
[402217010,1768606730139,-210.71644318,0.00013428,2]
[402217011,1768606733160,-264.87733376,0.00013428,2]
[402217012,1768606734713,-163.99097733,0.00013428,2]
[402217013,1768606736482,-261.54285605,0.00013428,2]
[402217014,1768606739050,-580.43958364,0.00013428,2]
[402217015,1768606741874,-289.90848603,0.00013427,2]
[402217016,1768606745106,-10.09151397,0.00013427,2]
[402217017,1768606745133,-300.0,0.00013427,2]
[402217018,1768606745158,-150.0,0.00013427,2]
[402217019,1768606745182,-93.12553254,0.00013428,2]
[402217020,1768606747105,-204.7351323,0.00013428,2]
[402217021,1768606749296,-232.09640326,0.00013428,2]
[402217022,1768606750902,-279.8674236,0.00013428,2]
[402217023,1768606754397,-158.76394628,0.00013428,2]
[402217024,1768606757933,-415.32326885,0.00013428,2]
[402217025,1768606761657,-396.53446097,0.00013428,2]
[402217026,1768606763569,-166.46688855,0.00013428,2]
[402217027,1768606765833,202.62746274,0.00013328,2]
[402217028,1768606768758,-171.71190336,0.00013428,2]
[402217029,1768606771192,-531.01692346,0.00013428,2]
[402217030,1768606771964,202.62746272,0.00013377,2]
[402217031,1768606775088,-163.39236788,0.00013428,2]
[402217032,1768606776410,-209.075767,0.00013428,2]
[402217033,1768606779404,-202.62746272,0.00013426,2]
[402217034,1768606779427,-181.85542409,0.00013428,2]
[402217035,1768606781804,743.718951,0.0001336,2]
[402217036,1768606782395,-290.77299761,0.00013428,2]
[402217037,1768606785449,-300.0,0.00013428,2]
[402217038,1768606786955,-253.15261541,0.00013428,2]
[402217039,1768606789028,-212.90405731,0.00013428,2]
[402217040,1768606792872,-192.71582831,0.00013428,2]
[402217041,1768606794995,-426.1348037,0.00013428,2]
[402217042,1768606796336,258.166527,0.0001336,2]
[402217043,1768606796896,-518.52371036,0.00013428,2]
[402217044,1768606801247,-274.80143649,0.00013428,2]
[402217045,1768606806346,-300.0,0.00013427,2]
[402217046,1768606806373,-65.82908401,0.00013427,2]
[402217049,1768606809269,-195.0,0.00013427,2]
[402217050,1768606812148,-267.46004957,0.00013427,2]
[402217051,1768606813920,-290.46004957,0.00013427,2]
[402217052,1768606818471,-381.25081685,0.00013427,2]
[402217053,1768606818497,-6.10577438,0.00013428,2]
[402217054,1768606821188,-226.12903702,0.00013428,2]
[402217055,1768606823801,-343.85765004,0.00013428,2]
[402217056,1768606825284,-321.58402444,0.00013428,2]
[402217057,1768606827982,-303.20627472,0.00013428,2]
[402217058,1768606831780,-300.0,0.00013428,2]
[402217059,1768606834408,-230.92470724,0.00013428,2]
[402217060,1768606838455,-193.87050116,0.00013426,2]
[402217061,1768606841953,-397.00678086,0.00013426,2]
[402217062,1768606845619,-197.60139504,0.00013426,2]
[402217063,1768606849270,-166.64583723,0.00013426,2]
[402217064,1768606851306,-214.24848571,0.00013426,2]
[402217065,1768606851331,-18.15885534,0.00013428,2]
[402217066,1768606853181,-245.56826363,0.00013428,2]
[402217067,1768606855237,-479.30030991,0.00013428,2]
[402217068,1768606859510,-213.45241374,0.00013428,2]
[402217069,1768606861722,-300.0,0.00013427,2]
[402217070,1768606861746,-32.22101303,0.00013428,2]
[402217071,1768606864288,-447.52811809,0.00013428,2]
[402217072,1768606867434,-169.76701349,0.00013428,2]
[402217073,1768606870388,-384.1489813,0.00013428,2]
[402217074,1768606871833,-287.97777892,0.00013428,2]
[402217075,1768606874578,-169.95676417,0.00013428,2]
[402217076,1768606878273,-229.4356474,0.00013428,2]
[402217077,1768606880280,-353.28030385,0.00013428,2]
[402217080,1768606882771,-238.85887605,0.00013428,2]
[402217081,1768606889108,-273.86999409,0.00013428,2]
[402217082,1768606892170,-292.88949726,0.00013428,2]
[402217083,1768606895353,-212.511,0.00013257,2]
[402217084,1768606895378,-23.38438252,0.00013257,2]
[402217085,1768606898681,-391.9355504,0.00013257,2]
[402217086,1768606901210,-302.4460822,0.00013257,2]
[402217087,1768606902850,-274.76701349,0.00013257,2]
[402217088,1768606904962,-277.42965865,0.00013257,2]
[402217089,1768606909402,-248.24867309,0.00013257,2]
[402217090,1768606911124,-215.70872266,0.00013257,2]
[402217091,1768606913640,-165.46142959,0.00013257,2]
[402217092,1768606915101,-195.98,0.00013257,2]
[402217093,1768606918019,-264.70766812,0.00013257,2]
[402217094,1768606919974,158.36,0.00011566,2]
[402217095,1768606920131,-158.36,0.00013011,2]
[402217096,1768606920156,-111.04144431,0.00013257,2]
[402217097,1768606922720,-328.01806371,0.00013257,2]
[402217098,1768606924977,-168.76903802,0.00013257,2]
[402217099,1768606931856,-300.0,0.00013257,2]
[402217100,1768606934530,-162.41690171,0.00013257,2]
[402217101,1768606949615,-6.12237153,0.00013257,2]
[402217102,1768606949640,-149.28862771,0.00013427,2]
[402217103,1768606953419,-150.71137229,0.00013427,2]
[402217104,1768606953761,-156.09251945,0.00013427,2]
[402217105,1768606959651,-143.90748055,0.00013427,2]
[402217106,1768606959675,-69.49596199,0.00013428,2]
[402217107,1768606960875,-251.8897265,0.00013428,2]
[402217108,1768606962340,-251.86575336,0.00013428,2]
[402217109,1768606966116,-254.56355035,0.00013428,2]
[402217110,1768606970698,-265.65375261,0.00013428,2]
[402217111,1768606972795,-332.83637419,0.00013428,2]
[402217112,1768606986653,-300.0,0.00013427,2]
[402217113,1768606986677,-2.0,0.00013428,2]
[402217114,1768606992093,-282.87701377,0.00013428,2]
[402217115,1768606993609,-280.91058091,0.00013428,2]
[402217116,1768606996079,-257.6043874,0.00013428,2]
[402217117,1768606997646,-163.7101,0.00013428,2]
[402217118,1768606997670,-45.76941929,0.00013428,2]
[402217119,1768606999253,-291.75089104,0.00013428,2]
[402217120,1768607002705,-278.87368488,0.00013428,2]
[402217121,1768607005301,-300.0,0.00013428,2]
[402217122,1768607007898,-301.44438854,0.00013428,2]
[402217123,1768607017807,-201.64389988,0.00013428,2]
[402217124,1768607019549,-290.48996012,0.00013428,2]
[402217125,1768607024120,-279.24068855,0.00013428,2]
[402217126,1768607026804,-176.59405375,0.00013428,2]
[402217127,1768607028979,-231.01348689,0.00013428,2]
[402217128,1768607032835,-103.17952706,0.00013428,2]
[402217129,1768607032860,-224.75150848,0.00013428,2]
[402217130,1768607034960,-25.24849152,0.00013428,2]
[402217131,1768607034988,-224.75150848,0.00013428,2]
[402217132,1768607037597,-250.0,0.00013428,2]
[402217133,1768607100716,-206.31,0.00013369,2]
[402217134,1768607121786,-9.39872266,0.00013369,2]
[402217135,1768607121811,-168.70480897,0.00013427,2]
[402217136,1768607125309,-198.82288384,0.00013427,2]
[402217137,1768607128915,-216.56969934,0.00013427,2]
[402217138,1768607131544,-152.41425195,0.00013427,2]
[402217139,1768607133046,-250.0,0.00013427,2]
[402217140,1768607134516,-213.4883559,0.00013427,2]
[402217141,1768607134540,-39.28896279,0.00013427,2]
[402217142,1768607136016,-176.41975987,0.00013427,2]
[402217143,1768607136065,-65.60624013,0.00013427,2]
[402217144,1768607138525,-234.39375987,0.00013427,2]
[402217145,1768607138557,-127.06100922,0.00013428,2]
[402217146,1768607216761,224.58403173,0.00015658,30]
[402217147,1768607217444,335.96427998,0.00015658,30]
[402217148,1768607218137,454.5684,0.00015658,30]
[402217150,1768607231644,382.69891358,0.0003013,120]
[402217151,1768607249522,-300.98183784,0.00013428,2]
[402217152,1768607251256,-235.01597369,0.00013428,2]
[402217153,1768607252707,-1798.06538847,0.00013428,2]
[402217154,1768607252737,-2500.0,0.00013428,2]
[402217155,1768607255729,-4923.5585615,0.00013428,2]
[402217156,1768607262287,-250.0,0.00013429,2]
[402217157,1768607262320,-300.0,0.00013429,2]
[402217158,1768607262351,-291.242939,0.0001343,2]
[402217159,1768607262388,-611.07645473,0.00013514,2]
[402217160,1768607262419,-304.09959517,0.00013514,2]
[402217161,1768607262456,-500.0,0.00013514,2]
[402217162,1768607262492,-500.0,0.00013514,2]
[402217163,1768607262526,-500.0,0.00013514,2]
[402217164,1768607262558,-300.0,0.00013514,2]
[402217165,1768607262589,-300.0,0.00013514,2]
[402217166,1768607262621,-150.0,0.00013514,2]
[402217167,1768607262657,-500.0,0.00013515,2]
[402217168,1768607262693,-487.1720222,0.00013515,2]
[402217169,1768607263040,-12.8279778,0.00013515,2]
[402217172,1768607414551,-151.66622044,0.00013415,2]
[402217173,1768607417196,-249.92279193,0.00013415,2]
[402217174,1768607419147,-227.68167756,0.00013415,2]
[402217175,1768607421164,-162.14755588,0.00013415,2]
[402217176,1768607423370,-164.01221423,0.00013415,2]
[402217177,1768607424401,-170.41859032,0.00013415,2]
[402217178,1768607430585,-215.14510851,0.00013415,2]
[402217186,1768607431661,-761.5885493,0.00013415,2]
[402217187,1768607431678,-3180.49739108,0.00013415,2]
[402217188,1768607431751,-328.4750411,0.00013415,2]
[402217189,1768607431762,-671.5249589,0.00013415,2]
[402217190,1768607431774,-6611.61588183,0.00013415,2]
[402217191,1768607431789,-361913.24344798,0.00013415,2]
[402217192,1768607431800,-1908.73579126,0.00013415,2]
[402217193,1768607431815,-26627.93118681,0.00013415,2]
[402217194,1768607431827,-30564.98701977,0.00013415,2]
[402217390,1768607434983,-448.84633014,0.00013415,2]
[402217391,1768607437819,-267.66268331,0.00013415,2]
[402217392,1768607438247,-9551.6,0.00013415,2]
[402217393,1768607438261,-1346.99999996,0.00013415,2]
[402217394,1768607439570,-601.60414997,0.00013415,2]
[402217395,1768607441389,-553873.69340972,0.00013415,2]
[402217396,1768607441398,-932.71925695,0.00013428,2]
[402217397,1768607441408,-260.0,0.00013428,2]
[402217398,1768607441417,-1200.0,0.00013513,2]
[402217399,1768607441427,-500.0,0.00013514,2]
[402217400,1768607441437,-500.0,0.00013514,2]
[402217401,1768607441447,-500.0,0.00013514,2]
[402217402,1768607441456,-500.0,0.00013514,2]
[402217403,1768607441465,-300.0,0.00013514,2]
[402217404,1768607441476,-150.0,0.00013514,2]
[402217405,1768607441486,-300.0,0.00013514,2]
[402217406,1768607441497,-1200.0,0.00013514,2]
[402217407,1768607441507,-300.0,0.00013514,2]
[402217408,1768607441516,-300.0,0.00013514,2]
[402217409,1768607441526,-500.0,0.00013515,2]
[402217410,1768607441536,-500.0,0.00013515,2]
[402217411,1768607441546,-500.0,0.00013515,2]
[402217412,1768607441724,-500.0,0.00013515,2]
[402217413,1768607441766,-500.0,0.00013515,2]
[402217414,1768607441776,-500.0,0.00013515,2]
[402217415,1768607441785,-500.0,0.00013515,2]
[402217416,1768607441794,-500.0,0.00013515,2]
[402217417,1768607441804,-500.0,0.00013515,2]
[402217418,1768607441813,-500.0,0.00013515,2]
[402217419,1768607441822,-500.0,0.00013515,2]
[402217420,1768607441832,-500.0,0.00013515,2]
[402217421,1768607441842,-500.0,0.00013515,2]
[402217422,1768607441851,-500.0,0.00013515,2]
[402217423,1768607441861,-262.93567039,0.00013515,2]
[402217424,1768607441870,-500.0,0.00013515,2]
[402217425,1768607441880,-500.0,0.00013515,2]
[402217426,1768607441890,-500.0,0.00013515,2]
[402217427,1768607441899,-500.0,0.00013515,2]
[402217428,1768607441909,-500.0,0.00013515,2]
[402217429,1768607441918,-500.0,0.00013515,2]
[402217430,1768607441927,-500.0,0.00013515,2]
[402217431,1768607441936,-500.0,0.00013515,2]
[402217432,1768607441945,-500.0,0.00013515,2]
[402217433,1768607441956,-500.0,0.00013515,2]
[402217434,1768607441965,-500.0,0.00013515,2]
[402217435,1768607441974,-500.0,0.00013515,2]
[402217436,1768607441984,-500.0,0.00013515,2]
[402217437,1768607441993,-500.0,0.00013515,2]
[402217438,1768607442002,-500.0,0.00013515,2]
[402217439,1768607442012,-500.0,0.00013515,2]
[402217440,1768607442021,-500.0,0.00013515,2]
[402217441,1768607442030,-500.0,0.00013515,2]
[402217442,1768607442040,-500.0,0.00013515,2]
[402217443,1768607442049,-500.0,0.00013515,2]
[402217444,1768607442058,-500.0,0.00013515,2]
[402217445,1768607442068,-500.0,0.00013515,2]
[402217446,1768607442077,-500.0,0.00013515,2]
[402217447,1768607442086,-500.0,0.00013515,2]
[402217448,1768607442095,-500.0,0.00013515,2]
[402217449,1768607442104,-500.0,0.00013515,2]
[402217450,1768607442114,-500.0,0.00013515,2]
[402217451,1768607442123,-500.0,0.00013515,2]
[402217452,1768607442132,-500.0,0.00013515,2]
[402217453,1768607442141,-500.0,0.00013515,2]
[402217454,1768607442150,-500.0,0.00013515,2]
[402217455,1768607442159,-500.0,0.00013515,2]
[402217456,1768607442169,-500.0,0.00013515,2]
[402217457,1768607442178,-500.0,0.00013515,2]
[402217458,1768607442187,-500.0,0.00013515,2]
[402217459,1768607442197,-500.0,0.00013515,2]
[402217460,1768607442207,-500.0,0.00013515,2]
[402217461,1768607442219,-500.0,0.00013515,2]
[402217462,1768607442228,-500.0,0.00013515,2]
[402217463,1768607442243,-326.8282841,0.00013515,2]
[402217464,1768607442253,-500.0,0.00013515,2]
[402217465,1768607442262,-500.0,0.00013515,2]
[402217466,1768607442271,-500.0,0.00013515,2]
[402217467,1768607442282,-500.0,0.00013515,2]
[402217468,1768607442292,-500.0,0.00013515,2]
[402217469,1768607442301,-500.0,0.00013515,2]
[402217470,1768607442313,-276.56421878,0.00013515,2]
[402217471,1768607442322,-500.0,0.00013515,2]
[402217472,1768607442331,-500.0,0.00013515,2]
[402217473,1768607442340,-500.0,0.00013515,2]
[402217474,1768607442350,-500.0,0.00013515,2]
[402217475,1768607442360,-356.00085164,0.00013515,2]
[402217476,1768607442369,-500.0,0.00013515,2]
[402217477,1768607442378,-500.0,0.00013515,2]
[402217478,1768607442387,-298.66013678,0.00013515,2]
[402217479,1768607442396,-322.84,0.00013515,2]
[402217480,1768607442406,-151.0,0.0001352,2]
[402217481,1768607442415,-500.0,0.0001352,2]
[402217482,1768607442424,-151.0,0.0001352,2]
[402217483,1768607442434,-151.0,0.0001352,2]
[402217484,1768607442444,-151.0,0.0001352,2]
[402217485,1768607442454,-151.0,0.0001352,2]
[402217486,1768607442464,-151.0,0.0001352,2]
[402217487,1768607442473,-151.0,0.0001352,2]
[402217488,1768607442483,-200.0,0.0001352,2]
[402217489,1768607442492,-151.0,0.0001352,2]
[402217490,1768607442502,-151.0,0.0001352,2]
[402217491,1768607442511,-500.0,0.0001352,2]
[402217492,1768607442520,-151.0,0.0001352,2]
[402217493,1768607442529,-500.0,0.0001352,2]
[402217494,1768607442538,-151.0,0.0001352,2]
[402217495,1768607442547,-500.0,0.0001352,2]
[402217496,1768607442556,-151.0,0.0001352,2]
[402217497,1768607442566,-500.0,0.0001352,2]
[402217498,1768607442575,-151.0,0.0001352,2]
[402217499,1768607442585,-500.0,0.0001352,2]
[402217500,1768607442595,-151.0,0.0001352,2]
[402217501,1768607442604,-205.06792171,0.0001352,2]
[402217502,1768607442613,-500.0,0.0001352,2]
[402217503,1768607442623,-151.0,0.0001352,2]
[402217504,1768607442632,-500.0,0.0001352,2]
[402217505,1768607442641,-200.0,0.0001352,2]
[402217506,1768607442650,-500.0,0.0001352,2]
[402217507,1768607442660,-500.0,0.0001352,2]
[402217508,1768607442669,-500.0,0.0001352,2]
[402217509,1768607442681,-500.0,0.0001352,2]
[402217511,1768607442696,-500.0,0.0001352,2]
[402217512,1768607442707,-500.0,0.0001352,2]
[402217514,1768607442718,-500.0,0.0001352,2]
[402217515,1768607442727,-500.0,0.0001352,2]
[402217516,1768607442737,-500.0,0.0001352,2]
[402217518,1768607442746,-500.0,0.0001352,2]
[402217519,1768607442756,-500.0,0.0001352,2]
[402217520,1768607442767,-413.50481717,0.00013527,2]
[402217521,1768607442776,-316.13583281,0.00013527,2]
[402217522,1768607442785,-235.35243286,0.00013527,2]
[402217523,1768607442795,-500.0,0.00013527,2]
[402217524,1768607442804,-500.0,0.00013527,2]
[402217525,1768607442813,-502.94694036,0.00013527,2]
[402217526,1768607442823,-500.0,0.00013528,2]
[402217527,1768607442832,-868.7075,0.00013529,2]
[402217528,1768607442841,-545.75807735,0.00013699,2]
[402217529,1768607442851,-1000.0,0.00013744,2]
[402217530,1768607442862,-322.84,0.00013789,2]
[402217531,1768607442871,-740.9043414,0.00013899,2]
[402217532,1768607442882,-4923.55856148,0.00013925,2]
[402217533,1768607442891,-932.71925687,0.00013925,2]
[402217534,1768607442900,-322.84,0.00014063,2]
[402217535,1768607442910,-500.0,0.00014099,2]
[402217536,1768607442919,-500.0,0.00014099,2]
[402217537,1768607442928,-500.0,0.00014099,2]
[402217538,1768607442937,-322.84,0.00014337,2]
[402217539,1768607442946,-4699.22,0.00014363,2]
[402217540,1768607442956,-1600.0,0.00014364,2]
[402217541,1768607442965,-4923.55856148,0.00014422,2]
[402217542,1768607442975,-932.71925687,0.00014422,2]
[402217543,1768607442984,-158.36,0.00014457,2]
[402217544,1768607442994,-342.66,0.00014532,2]
[402217545,1768607443003,-322.8657473,0.00014611,2]
[402217546,1768607443013,-255.0,0.00014622,2]
[402217547,1768607443022,-638.89421945,0.0001477,2]
[402217548,1768607443033,-250.0,0.0001477,2]
[402217549,1768607443042,-342.54561698,0.0001477,2]
[402217550,1768607443051,-2500.0,0.0001477,2]
[402217551,1768607443061,-2553.83434889,0.0001477,2]
[402217552,1768607443070,-195.0,0.0001477,2]
[402217553,1768607443080,-195.0,0.00014771,2]
[402217554,1768607443090,-250.0,0.00014771,2]
[402217555,1768607443100,-177.57814651,0.00014771,2]
[402217556,1768607443109,-195.0,0.00014771,2]
[402217557,1768607443119,-250.0,0.00014771,2]
[402217558,1768607443129,-1544.68157439,0.00014771,2]
[402217559,1768607443138,-300.0,0.00014771,2]
[402217560,1768607443148,-300.0,0.00014771,2]
[402217561,1768607443158,-420.0,0.00014812,2]
[402217562,1768607443167,-420.0,0.00014812,2]
[402217563,1768607443176,-420.0,0.00014812,2]